bitfinex/quotes_ETHUSD_20240828
["timestamp","ask_amount","ask_price","bid_price","bid_amount"]
[1724867933783,3.98525,2509.3,2509.0,0.10739298]
[1724867934446,3.98496,2509.5,2509.0,0.10739298]
[1724867934645,3.98441,2509.8,2509.0,0.10739298]
[1724867934997,3.98549,2509.1,2509.0,0.10739298]
[1724867935342,3.98543,2509.2,2509.0,0.10739298]
[1724867935542,3.98549,2509.1,2509.0,0.10739298]
[1724867935790,7.97098,2509.1,2509.0,0.10739298]
[1724867935949,3.98582,2508.9,2508.4,6.37043914]
[1724867936144,3.98582,2508.9,2508.4,6.919804]
[1724867936564,3.98549,2509.1,2508.6,3.98626]
[1724867936902,3.98525,2509.3,2508.8,3.98595]
[1724867937247,7.97056,2509.3,2508.7,2.4952]
[1724867937472,7.97056,2509.3,2508.7,6.48129]
[1724867937473,7.97052,2509.3,2508.7,6.48129]
[1724867937679,3.9849,2509.5,2508.8,3.98594]
[1724867937845,3.0,2509.8,2508.7,6.48123]
[1724867938058,3.98534,2509.2,2508.7,2.86038009]
[1724867938259,3.98534,2509.2,2508.7,2.4952]
[1724867938588,3.98538,2509.2,2508.7,6.48119]
[1724867938790,3.9851,2509.4,2508.7,3.541953]
[1724867938963,3.9851,2509.4,2508.7,6.48117]
[1724867939285,2.4358,2510.4,2509.4,3.98501]
[1724867939485,3.98422,2509.9,2509.5,2.840901]
[1724867939645,3.98422,2509.9,2509.5,2.4424]
[1724867939862,3.98362,2510.3,2509.5,2.4424]
[1724867940059,7.96927,2509.7,2509.2,2.4424]
[1724867940462,3.98463,2509.7,2509.2,2.4424]
[1724867940662,3.98473,2509.6,2509.2,3.085178]
[1724867940994,3.98473,2509.6,2509.2,2.4424]
[1724867941180,3.98445,2509.8,2509.2,2.4424]
[1724867941181,3.98454,2509.7,2509.2,2.4424]
[1724867941381,3.9848,2509.6,2509.2,2.4424]
[1724867941597,3.98447,2509.8,2509.2,6.42772]
[1724867941757,3.98471,2509.6,2509.2,2.4424]
[1724867942398,3.98465,2509.7,2509.2,2.4424]
[1724867942595,7.96933,2509.7,2509.2,6.42772]
[1724867942764,3.98465,2509.7,2509.2,6.42772]
[1724867942964,3.98482,2509.6,2509.2,3.49170514]
[1724867943268,3.98482,2509.6,2508.5,17.51246241]
[1724867943269,3.98558,2509.1,2508.7,2.3025]
[1724867943473,3.98511,2509.4,2508.7,6.28856]
[1724867943693,3.98476,2509.6,2508.7,2.3025]
[1724867943694,3.9855,2509.1,2508.7,2.3025]
[1724867944192,3.98535,2509.2,2508.7,2.3025]
[1724867944379,7.9703,2509.4,2508.8,3.98593]
[1724867944561,3.9848,2509.6,2508.9,3.98565]
[1724867944762,3.98544,2509.2,2508.8,0.77381342]
[1724867945262,3.98596,2508.8,2508.7,2.3025]
[1724867945666,3.98566,2509.0,2508.7,2.3025]
[1724867945868,6.98475,2509.6,2508.7,6.28861]
[1724867946273,6.98475,2509.6,2508.7,8.057104]
[1724867946561,3.98496,2509.5,2508.8,3.98586]
[1724867946775,3.98466,2509.7,2509.1,2.4674]
[1724867947069,3.98484,2509.6,2509.1,6.69949]
[1724867947264,3.98509,2509.4,2509.1,2.71414]
[1724867947464,3.98581,2508.9,2508.8,9.7255]
[1724867947765,3.98557,2509.1,2508.8,2.3155]
[1724867948811,3.98557,2509.1,2508.9,0.10857169]
[1724867949589,7.97119,2509.1,2508.9,0.10857169]
[1724867949908,3.98557,2509.1,2508.9,0.10857169]
[1724867950107,3.98525,2509.3,2508.9,0.10857169]
[1724867950602,3.98533,2509.2,2508.9,0.10857169]
[1724867950798,3.98565,2509.0,2508.9,0.10857169]
[1724867951201,3.98551,2509.1,2508.9,0.10857169]
[1724867951402,7.9713,2509.0,2508.9,0.10857169]
[1724867951617,7.9713,2509.0,2508.1,2.4031]
[1724867951618,6.98565,2509.0,2508.1,2.4031]
[1724867951783,3.98692,2508.2,2508.1,2.4031]
[1724867951981,3.98678,2508.3,2508.1,2.4031]
[1724867952483,3.98621,2508.7,2508.1,2.64341]
[1724867952732,3.98664,2508.4,2508.1,2.64341]
[1724867952929,7.9731,2508.5,2508.1,2.4031]
[1724867953082,3.98663,2508.4,2508.1,2.4031]
[1724867953277,3.98692,2508.2,2508.1,2.4031]
[1724867953580,3.98666,2508.4,2508.1,2.4031]
[1724867953996,3.98646,2508.5,2508.1,3.042149]
[1724867954315,3.98687,2508.3,2508.1,2.4031]
[1724867954494,3.98656,2508.5,2508.1,2.4031]
[1724867954690,3.98679,2508.3,2508.1,2.4031]
[1724867954920,3.98656,2508.5,2508.1,2.4031]
[1724867955132,3.98656,2508.5,2508.1,2.64341]
[1724867955276,0.49455368,2509.4,2508.1,2.64341]
[1724867955478,3.98583,2508.9,2508.4,3.98648]
[1724867955678,3.9856,2509.1,2508.4,4.0662025]
[1724867955917,3.9856,2509.1,2508.5,0.63460025]
[1724867956119,3.98575,2509.0,2508.7,2.2798]
[1724867956326,3.98526,2509.3,2508.7,6.26591]
[1724867956493,3.98526,2509.3,2508.8,0.22798]
[1724867956683,3.98519,2509.3,2508.8,0.30769264]
[1724867956883,7.96991,2509.5,2508.9,3.98579]
[1724867957228,3.98495,2509.5,2509.1,2.2798]
[1724867957896,7.96989,2509.5,2509.1,2.2798]
[1724867958098,3.98494,2509.5,2509.1,2.2798]
[1724867958723,7.96927,2509.7,2509.1,6.26519]
[1724867959023,3.98472,2509.6,2509.2,0.626543]
[1724867959514,3.98487,2509.5,2509.2,0.626543]
[1724867959982,7.9693,2509.7,2509.2,0.626543]
[1724867960186,3.98462,2509.7,2509.2,0.626543]
[1724867960510,0.41500082,2509.8,2509.1,2.2798]
[1724867960511,3.98513,2509.4,2509.1,2.2798]
[1724867960721,3.98519,2509.3,2509.1,2.2798]
[1724867961018,3.98533,2509.2,2508.7,4.0657121]
[1724867961223,7.97078,2509.2,2508.8,2.2798]
[1724867961389,3.98533,2509.2,2508.8,2.2798]
[1724867961585,3.98517,2509.3,2508.8,6.26575]
[1724867961814,3.98517,2509.3,2508.8,7.74810912]
[1724867961982,3.98533,2509.2,2508.8,3.76215912]
[1724867962397,3.98494,2509.5,2508.9,4.87527403]
[1724867962601,7.96988,2509.5,2508.9,4.87527403]
[1724867962835,3.98503,2509.4,2508.9,4.87527403]
[1724867963035,3.98518,2509.3,2508.9,0.88958403]
[1724867963346,3.98518,2509.3,2508.8,7.74811912]
[1724867963705,3.98549,2509.2,2508.9,0.10870051]
[1724867964144,3.98518,2509.3,2508.9,0.10870051]
[1724867964436,3.98507,2509.4,2508.9,4.09441051]
[1724867964609,3.98507,2509.4,2508.9,5.13046256]
[1724867964814,3.98519,2509.3,2508.9,1.14475256]
[1724867965110,7.97047,2509.3,2508.9,0.10870051]
[1724867965305,3.98519,2509.3,2508.9,0.10870051]
[1724867967005,3.98549,2509.1,2508.9,0.10870051]
[1724867967408,7.9713,2509.0,2508.9,0.10870051]
[1724867967602,3.9855,2509.1,2508.9,0.10870051]
[1724867967824,3.98533,2509.2,2508.7,3.98612]
[1724867968023,3.98557,2509.1,2509.0,0.10856141]
[1724867968223,3.98542,2509.2,2508.7,3.98612]
[1724867968445,3.98542,2509.2,2509.0,0.10856141]
[1724867968631,3.98542,2509.2,2508.7,3.98612]
[1724867968632,3.98522,2509.3,2508.9,2.4922]
[1724867968946,7.96997,2509.5,2509.1,0.10845094]
[1724867969107,7.96997,2509.5,2509.0,4.09412141]
[1724867969303,3.98497,2509.5,2509.2,0.10847889]
[1724867969546,3.98463,2509.7,2509.1,3.98546]
[1724867969703,3.98495,2509.5,2509.3,0.10836845]
[1724867969911,3.98495,2509.5,2509.0,4.633316]
[1724867969912,3.98495,2509.5,2509.0,3.98551]
[1724867970137,3.98495,2509.5,2509.4,0.10832959]
[1724867970351,3.98526,2509.3,2508.9,2.4922]
[1724867970710,3.98496,2509.5,2508.9,2.4922]
[1724867970711,3.98502,2509.4,2508.9,6.47799]
[1724867970960,3.98502,2509.4,2508.9,4.02323526]
[1724867971141,3.98502,2509.4,2508.9,2.4922]
[1724867971444,3.98502,2509.4,2508.9,6.478]
[1724867971750,4.39944082,2509.8,2509.2,3.98529]
[1724867971751,3.98456,2509.7,2509.2,3.98529]
[1724867972042,3.98456,2509.7,2509.3,0.398529]
[1724867972212,3.98456,2509.7,2509.0,2.3157]
[1724867972413,3.98456,2509.7,2509.1,3.98533]
[1724867972414,3.98474,2509.6,2509.1,3.98533]
[1724867972833,3.98496,2509.5,2509.0,6.30126]
[1724867973051,3.98496,2509.5,2509.0,7.01297495]
[1724867973413,3.98474,2509.6,2509.1,3.98548]
[1724867973715,7.96955,2509.6,2509.1,3.98548]
[1724867974054,3.98486,2509.5,2509.1,3.98548]
[1724867974357,3.98486,2509.5,2509.0,6.30135]
[1724867975024,3.98486,2509.5,2509.0,2.3157]
[1724867975223,3.98486,2509.5,2509.0,6.30135]
[1724867975622,3.98505,2509.4,2509.0,2.3157]
[1724867975826,3.98486,2509.5,2509.0,2.3157]
[1724867976050,7.96986,2509.5,2509.0,6.30134]
[1724867976239,3.98486,2509.5,2509.0,6.30134]
[1724867976422,3.98505,2509.4,2509.0,2.3157]
[1724867976624,3.9852,2509.3,2509.0,2.3157]
[1724867976919,7.97095,2509.2,2508.7,6.38373]
[1724867977136,7.97089,2509.2,2508.7,6.38373]
[1724867977374,3.9851,2509.4,2508.9,3.9857]
[1724867977678,3.98497,2509.5,2508.9,3.98569]
[1724867977837,3.98497,2509.5,2508.8,0.07970807]
[1724867978034,3.98502,2509.4,2509.0,3.98556]
[1724867978481,3.98485,2509.5,2509.0,3.98556]
[1724867978788,3.98485,2509.5,2509.1,0.10860843]
[1724867979136,3.98514,2509.4,2509.1,0.10860843]
[1724867979448,3.98533,2509.2,2508.7,2.3977]
[1724867979676,3.98565,2509.0,2508.7,2.3977]
[1724867979834,3.98533,2509.2,2508.7,2.3977]
[1724867980033,3.98562,2509.1,2508.7,2.3977]
[1724867980233,3.98579,2509.0,2508.7,2.3977]
[1724867980489,3.98575,2509.0,2508.7,2.3977]
[1724867980635,7.9715,2509.0,2508.5,3.98644]
[1724867980835,3.98589,2508.9,2508.4,5.175398]
[1724867981121,3.98639,2508.6,2508.1,2.4193]
[1724867981380,3.98612,2508.8,2508.2,3.98681]
[1724867981536,3.98612,2508.8,2508.2,9.012956]
[1724867982177,3.98612,2508.8,2508.2,5.026136]
[1724867982550,3.98617,2508.7,2508.2,5.026136]
[1724867982755,3.98612,2508.8,2508.2,5.026136]
[1724867982756,3.98608,2508.8,2508.2,5.026136]
[1724867983100,3.98613,2508.7,2508.2,5.026136]
[1724867983236,3.98608,2508.8,2508.2,5.026136]
[1724867983432,3.98608,2508.8,2508.3,4.7312636]
[1724867983633,3.98605,2508.8,2508.3,4.7312636]
[1724867983883,6.98537,2509.2,2508.3,4.7312636]
[1724867983884,3.9855,2509.1,2508.4,2.3986]
[1724867984086,4.39985947,2509.5,2508.5,4.38841745]
[1724867984264,3.98574,2509.0,2508.5,8.37477745]
[1724867984573,3.98564,2509.1,2508.6,5.06352774]
[1724867984778,3.98559,2509.1,2508.6,5.06352774]
[1724867985188,3.98534,2509.2,2508.7,3.98608]
[1724867985475,3.98529,2509.3,2508.8,2.3261]
[1724867985476,3.98519,2509.3,2508.8,2.3261]
[1724867985665,3.98598,2508.8,2508.5,2.64838734]
[1724867985979,3.98598,2508.8,2508.5,2.3261]
[1724867986485,3.98582,2508.9,2508.5,2.3261]
[1724867986686,3.98614,2508.7,2508.5,2.3261]
[1724867986986,3.98535,2509.2,2508.5,2.3261]
[1724867986987,3.986,2508.8,2508.5,2.3261]
[1724867987774,3.98596,2508.9,2508.5,2.3261]
[1724867988342,3.98561,2509.1,2508.5,7.342427]
[1724867988343,3.98572,2509.0,2508.5,7.342427]
[1724867989379,3.98581,2508.9,2508.5,3.356037]
[1724867989590,3.98581,2508.9,2508.5,2.3261]
[1724867989742,3.98556,2509.1,2508.6,3.98628]
[1724867989936,7.97117,2509.1,2508.6,3.98628]
[1724867990482,3.98556,2509.1,2508.6,3.98628]
[1724867990784,7.97116,2509.1,2508.6,3.98628]
[1724867990985,3.98556,2509.1,2508.5,2.3261]
[1724867991187,3.98572,2509.0,2508.5,6.943714]
[1724867991350,7.97173,2508.9,2508.5,2.957354]
[1724867991546,3.98613,2508.7,2508.5,2.3261]
[1724867991985,3.98644,2508.6,2508.1,9.7361]
[1724867992287,3.98612,2508.7,2508.1,9.7361]
[1724867992288,3.98677,2508.3,2508.1,9.7361]
[1724867992589,3.98677,2508.3,2507.9,12.78560548]
[1724867992590,3.98739,2508.0,2507.7,2.3261]
[1724867992946,7.97408,2508.2,2507.7,3.356288]
[1724867993267,3.98701,2508.2,2507.7,7.343998]
[1724867993572,3.98671,2508.4,2507.8,4.7219398]
[1724867993573,3.98677,2508.3,2507.8,4.7219398]
[1724867993781,3.98671,2508.4,2507.8,4.83228562]
[1724867994090,6.98605,2508.8,2508.2,2.4317]
[1724867994091,3.98638,2508.6,2508.2,2.4317]
[1724867994298,7.97213,2508.8,2508.2,2.4317]
[1724867994446,7.97213,2508.8,2508.3,4.09661629]
[1724867994656,3.98615,2508.7,2508.3,0.10993629]
[1724867994849,3.98605,2508.8,2508.3,4.09654629]
[1724867995063,7.97216,2508.8,2508.3,4.74940192]
[1724867995289,3.98614,2508.7,2508.3,0.76279192]
[1724867995506,3.98575,2509.0,2508.5,3.98636]
[1724867995645,3.98575,2509.0,2508.4,0.71813919]
[1724867995646,3.98573,2509.0,2508.4,8.80095496]
[1724867995997,4.4006507,2509.1,2508.6,4.09581745]
[1724867996232,4.4006507,2509.1,2508.6,3.98627]
[1724867996434,4.4006507,2509.1,2508.7,0.10943696]
[1724867996601,3.98568,2509.0,2508.7,0.10943696]
[1724867996790,0.4150807,2509.1,2508.7,0.10943696]
[1724867996990,4.4006007,2509.1,2508.6,3.98628]
[1724867997194,4.4006007,2509.1,2508.8,0.10932647]
[1724867997487,3.98566,2509.0,2508.9,0.10921599]
[1724867997693,0.4150807,2509.1,2508.5,2.4317]
[1724867998030,3.98565,2509.0,2508.9,0.10912051]
[1724867998253,3.98582,2508.9,2508.5,2.4317]
[1724867998524,3.98565,2509.0,2508.5,6.41812]
[1724867998729,0.4150807,2509.1,2508.8,3.98595]
[1724867998889,3.98508,2509.4,2508.9,2.3164]
[1724867999096,3.9856,2509.1,2508.9,2.3164]
[1724867999626,3.98565,2509.0,2508.9,2.3164]
[1724867999829,3.9855,2509.1,2508.5,2.373]
[1724868000054,3.9855,2509.1,2508.6,3.98618]
[1724868000251,3.98503,2509.4,2508.9,2.373]
[1724868000454,4.39993031,2509.5,2508.9,6.35868]
[1724868000610,2.3068,2509.4,2508.2,7.41]
[1724868000816,2.3068,2509.1,2508.1,3.98699]
[1724868001028,3.98605,2508.8,2508.0,4.70591939]
[1724868001224,0.69075287,2508.8,2508.3,2.373]
[1724868001527,3.9857,2509.0,2508.4,4.622567]
[1724868001720,0.54605368,2509.2,2508.4,3.98659]
[1724868001938,0.54605368,2509.2,2508.3,2.373]
[1724868002147,3.98606,2508.8,2508.3,2.373]
[1724868002313,3.98594,2508.9,2508.3,2.373]
[1724868002314,3.98594,2508.9,2508.4,3.98648]
[1724868002510,2.72187031,2509.5,2508.3,2.373]
[1724868002511,3.98529,2509.3,2508.8,2.357]
[1724868002829,3.98519,2509.3,2508.8,2.357]
[1724868003310,3.98568,2509.0,2508.8,2.357]
[1724868003681,3.98568,2509.0,2507.9,0.59946805]
[1724868003682,2.2697,2508.6,2507.8,0.74932491]
[1724868003854,3.98739,2507.9,2507.8,0.74932491]
[1724868004213,7.97478,2507.9,2507.8,0.74932491]
[1724868004409,2.2697,2507.7,2507.2,0.62475383]
[1724868004709,3.0,2508.5,2507.0,3.98868]
[1724868004710,2.2697,2508.1,2507.0,3.98868]
[1724868004912,2.2697,2508.1,2507.2,6.41187]
[1724868004913,3.98765,2507.8,2507.2,6.41187]
[1724868005210,3.98656,2508.5,2507.2,6.41187]
[1724868005211,3.98744,2507.9,2507.2,6.41187]
[1724868005412,3.98788,2507.6,2507.2,2.4234]
[1724868005613,3.98763,2507.8,2507.2,2.4234]
[1724868005813,3.98763,2507.8,2507.3,0.24234]
[1724868006172,2.2697,2508.0,2506.6,3.98937]
[1724868006377,2.2697,2508.0,2506.8,2.4234]
[1724868006378,3.98764,2507.8,2506.8,2.4234]
[1724868006511,3.98868,2507.1,2506.8,2.4234]
[1724868006709,3.98877,2507.1,2506.6,3.98943]
[1724868006909,3.98844,2507.3,2506.6,3.98943]
[1724868007148,3.98844,2507.3,2506.5,2.822373]
[1724868007149,3.98778,2507.7,2507.0,2.4234]
[1724868007474,3.98823,2507.4,2507.0,2.4234]
[1724868008152,2.2697,2507.2,2505.9,2.4234]
[1724868008508,3.98958,2506.6,2506.0,0.30232982]
[1724868008729,3.98966,2506.5,2505.9,6.41385]
[1724868008909,3.98996,2506.3,2505.9,2.4234]
[1724868009128,3.99042,2506.0,2505.9,2.4234]
[1724868009816,3.99012,2506.2,2505.9,2.4234]
[1724868010018,3.98986,2506.4,2505.9,2.4234]
[1724868010449,3.98986,2506.4,2505.9,3.06532]
[1724868010650,3.98956,2506.6,2505.9,3.06532]
[1724868010651,7.97915,2506.6,2505.9,7.05578]
[1724868010950,3.98978,2506.4,2505.9,7.05578]
[1724868011159,3.98955,2506.6,2505.9,7.05578]
[1724868011456,3.98973,2506.5,2505.9,3.06532]
[1724868011660,3.99022,2506.2,2505.9,2.4234]
[1724868011950,3.98986,2506.4,2505.9,2.4234]
[1724868012250,3.98996,2506.3,2505.9,2.4234]
[1724868012426,3.98986,2506.4,2505.9,2.4234]
[1724868012629,3.0,2506.9,2505.7,0.005]
[1724868012809,3.98975,2506.5,2505.8,3.99073]
[1724868013014,3.98935,2506.7,2506.2,3.99009]
[1724868013357,3.98907,2506.9,2506.3,6.3602]
[1724868013563,3.98907,2506.9,2506.3,2.3704]
[1724868013911,3.98907,2506.9,2506.4,3.98969]
[1724868014115,5.4567,2507.0,2505.8,2.3048]
[1724868014415,3.99043,2506.0,2505.7,0.005]
[1724868014614,3.99074,2505.8,2505.7,0.005]
[1724868014844,3.99001,2506.3,2505.7,2.4201]
[1724868015020,3.99001,2506.3,2505.7,2.66211]
[1724868015399,3.99012,2506.2,2505.7,2.4201]
[1724868015658,3.99053,2506.0,2505.7,0.005]
[1724868016152,3.0,2506.6,2505.8,0.09944059]
[1724868016153,0.41533582,2506.4,2505.8,0.09944059]
[1724868016515,6.98924,2506.8,2506.1,3.99026]
[1724868016825,6.98924,2506.8,2506.3,2.4151]
[1724868016826,4.40454836,2506.8,2506.3,2.4151]
[1724868017017,4.40454836,2506.8,2506.4,0.09962957]
[1724868017413,3.98956,2506.6,2505.9,3.99048]
[1724868017622,3.98956,2506.6,2506.0,0.10007242]
[1724868018236,3.98956,2506.6,2506.0,4.09037242]
[1724868018552,4.40450836,2506.8,2506.2,2.3088]
[1724868018817,0.41530836,2506.8,2506.4,3.98976]
[1724868018966,4.40447836,2506.8,2506.3,4.08956027]
[1724868019272,3.9894,2506.7,2506.4,0.09950081]
[1724868019571,3.98962,2506.5,2506.2,2.3088]
[1724868019923,3.9894,2506.7,2506.2,2.3088]
[1724868020349,0.41530836,2506.8,2506.6,3.98934]
[1724868020560,3.98748,2507.9,2507.2,3.98847]
[1724868020830,3.98637,2508.6,2507.4,2.3088]
[1724868020831,0.41525608,2507.7,2507.4,2.3088]
[1724868021030,3.98816,2507.5,2507.0,2.3088]
[1724868021332,3.98823,2507.4,2507.0,2.3088]
[1724868021532,7.97654,2507.4,2507.0,2.3088]
[1724868021877,3.98823,2507.4,2506.7,10.26208]
[1724868022025,3.98842,2507.3,2506.7,6.27287]
[1724868022223,7.97596,2507.6,2506.7,3.309941]
[1724868022470,3.98796,2507.6,2506.9,3.98889]
[1724868022671,0.41520689,2507.9,2507.0,2.36347365]
[1724868022890,0.41520689,2507.9,2507.4,2.2837]
[1724868023095,12.34,2509.5,2508.6,6.26996]
[1724868023096,3.985,2509.5,2508.6,6.26996]
[1724868023394,3.985,2509.5,2508.6,10.25613]
[1724868023395,3.98527,2509.3,2508.6,10.25613]
[1724868023684,3.98501,2509.4,2508.7,3.98602]
[1724868023989,0.56676848,2509.4,2508.6,6.26992]
[1724868024149,4.55195848,2509.3,2508.7,3.98603]
[1724868025064,0.56676848,2509.3,2508.8,3.98592]
[1724868025378,0.56676848,2509.3,2508.6,2.2837]
[1724868025582,3.98604,2508.8,2508.2,2.2837]
[1724868025889,3.98604,2508.8,2508.2,6.27052]
[1724868026184,3.0,2509.2,2508.2,6.27052]
[1724868026185,3.0,2509.2,2508.2,2.2837]
[1724868026385,3.98636,2508.6,2507.8,6.27115]
[1724868026684,0.56676848,2508.7,2508.1,3.98707]
[1724868027058,4.55290848,2508.7,2508.1,3.98707]
[1724868027271,4.55290848,2508.7,2508.1,7.97414]
[1724868027461,4.55290848,2508.7,2508.1,3.98707]
[1724868027856,4.55291848,2508.7,2508.1,3.98698]
[1724868028347,3.98632,2508.6,2507.9,3.98731]
[1724868028586,4.55294848,2508.7,2508.0,3.98715]
[1724868028774,4.55290848,2508.7,2508.1,0.52854028]
[1724868028971,3.98638,2508.6,2507.9,1.29825277]
[1724868029283,3.98677,2508.3,2507.9,1.24825277]
[1724868029449,3.98677,2508.3,2507.8,6.27118]
[1724868029644,3.98677,2508.3,2507.8,2.2837]
[1724868029881,3.9872,2508.1,2507.8,2.2837]
[1724868030287,3.98766,2507.8,2507.4,2.3165]
[1724868030490,3.98753,2507.9,2507.4,2.3165]
[1724868030650,3.98798,2507.6,2507.0,2.3165]
[1724868030985,3.98839,2507.3,2507.0,2.3165]
[1724868031157,3.98831,2507.4,2507.0,2.3165]
[1724868031158,3.98851,2507.2,2507.0,2.3165]
[1724868031859,3.98831,2507.4,2507.0,2.3165]
[1724868032173,3.98831,2507.4,2506.7,3.9892]
[1724868032347,3.98854,2507.2,2506.7,4.787076]
[1724868032690,3.98764,2507.8,2507.0,3.98882]
[1724868032851,7.97534,2507.8,2507.2,6.25949]
[1724868033049,3.98764,2507.8,2507.2,2.2711]
[1724868033270,3.98783,2507.7,2507.2,2.2711]
[1724868033490,3.98764,2507.8,2507.2,2.2711]
[1724868033692,3.98798,2507.6,2507.2,2.2711]
[1724868033848,3.98809,2507.5,2507.2,2.2711]
[1724868034194,3.98835,2507.3,2506.8,2.2711]
[1724868034351,7.97684,2507.3,2506.8,2.2711]
[1724868034553,3.98852,2507.2,2506.8,2.2711]
[1724868034786,3.98852,2507.2,2506.9,0.09664633]
[1724868034989,3.98883,2507.0,2506.9,0.09664633]
[1724868035296,3.98948,2506.6,2506.4,2.2711]
[1724868035493,3.98948,2506.6,2506.2,0.8281221]
[1724868035494,3.98962,2506.5,2506.2,0.8281221]
[1724868035699,3.98982,2506.4,2506.3,0.0973104]
[1724868036159,3.98982,2506.4,2506.2,0.8281221]
[1724868036367,7.97988,2506.3,2506.2,0.8281221]
[1724868036571,3.98994,2506.3,2506.2,0.8281221]
[1724868037686,3.9898,2506.4,2506.2,0.8281221]
[1724868038399,3.9899,2506.4,2506.2,0.8281221]
[1724868038553,3.9895,2506.6,2506.3,2.3739]
[1724868038902,7.97908,2506.6,2506.3,2.3739]
[1724868039049,3.9895,2506.6,2506.3,2.3739]
[1724868039252,3.9895,2506.6,2505.7,0.005]
[1724868039253,3.9899,2506.4,2505.7,3.9958]
[1724868039454,3.9899,2506.4,2505.7,4.71257946]
[1724868039766,3.9899,2506.4,2505.8,3.9907]
[1724868039963,3.98957,2506.6,2506.0,3.99028]
[1724868040166,3.0,2506.8,2506.1,0.798083]
[1724868040167,3.98986,2506.4,2506.1,0.798083]
[1724868040361,3.98974,2506.5,2505.9,3.99055]
[1724868040597,3.98974,2506.5,2505.9,4.852809]
[1724868040803,3.0,2506.8,2505.9,4.852809]
[1724868041091,3.9898,2506.4,2505.9,4.852809]
[1724868041340,6.98903,2506.9,2505.9,4.852809]
[1724868041341,3.98977,2506.5,2505.9,4.852809]
[1724868041600,3.98977,2506.5,2505.7,0.005]
[1724868041601,3.9901,2506.2,2505.7,0.005]
[1724868042095,7.9803,2506.2,2505.7,3.99589]
[1724868042399,3.99052,2506.0,2505.7,0.005]
[1724868042700,7.98103,2506.0,2505.7,0.005]
[1724868042855,3.99051,2506.0,2505.7,0.005]
[1724868043050,7.98102,2506.0,2505.7,0.005]
[1724868043306,3.99051,2506.0,2505.7,0.005]
[1724868043595,3.99017,2506.2,2505.7,0.005]
[1724868043799,3.9904,2506.1,2505.7,0.005]
[1724868043956,3.9905,2506.0,2505.7,0.005]
[1724868044157,3.9904,2506.1,2505.7,0.005]
[1724868044356,7.9808,2506.1,2505.7,0.005]
[1724868044791,3.99043,2506.0,2505.7,0.005]
[1724868045166,3.9904,2506.1,2505.7,0.005]
[1724868045167,3.99039,2506.1,2505.7,0.005]
[1724868045385,3.99035,2506.1,2505.7,0.005]
[1724868045588,3.9906,2505.9,2505.7,0.005]
[1724868045955,3.99074,2505.8,2505.7,0.005]
[1724868046423,7.98148,2505.8,2505.7,0.005]
[1724868046794,3.99074,2505.8,2505.7,0.005]
[1724868047722,11.97222,2505.8,2505.7,0.005]
[1724868047885,11.97222,2505.8,2505.7,1e-05]
[1724868047886,25.73594692,2505.8,2505.7,1e-05]
[1724868048091,37.44643992,2505.8,2505.7,1e-05]
[1724868048313,3.99259,2504.7,2504.3,2.3758]
[1724868048696,3.99259,2504.7,2504.4,0.10171297]
[1724868048916,3.99281,2504.5,2504.4,0.10171297]
[1724868049304,3.99281,2504.5,2503.8,2.3758]
[1724868049305,3.99302,2504.4,2503.8,2.3758]
[1724868049616,3.99259,2504.7,2504.1,3.9934]
[1724868049812,3.99226,2504.9,2504.3,6.36877]
[1724868050031,3.99226,2504.9,2504.3,6.36884]
[1724868050236,3.99226,2504.9,2504.4,0.10171297]
[1724868050437,3.99246,2504.8,2504.4,0.10171297]
[1724868050640,3.99211,2505.0,2504.4,4.09457297]
[1724868050939,6.99217,2504.9,2504.4,0.10171297]
[1724868051350,3.99235,2504.8,2504.4,0.10171297]
[1724868051714,3.99257,2504.7,2504.4,0.10171297]
[1724868051916,3.0,2504.9,2504.4,0.10171297]
[1724868051917,6.99226,2504.9,2504.4,0.10171297]
[1724868052451,3.99148,2505.4,2504.4,0.82862039]
[1724868052768,0.50164692,2505.9,2504.9,2.3758]
[1724868053052,3.9913,2505.5,2505.0,0.23758]
[1724868053203,0.50164692,2506.0,2505.0,0.10184016]
[1724868053404,3.99147,2505.4,2505.0,0.10184016]
[1724868053804,3.99126,2505.5,2505.0,0.10184016]
[1724868054053,3.99084,2505.8,2505.2,3.99155]
[1724868054250,3.99084,2505.8,2505.3,3.99141]
[1724868054404,3.9909,2505.7,2505.3,0.10150774]
[1724868054606,3.99084,2505.8,2505.3,0.10150774]
[1724868054837,3.99084,2505.8,2505.2,3.99155]
[1724868055144,3.99107,2505.6,2505.3,0.10150774]
[1724868055352,0.50164692,2506.0,2505.3,0.10150774]
[1724868055353,4.49212692,2506.0,2505.3,0.10150774]
[1724868055502,7.98099,2506.0,2505.4,6.36704]
[1724868055707,3.99048,2506.0,2505.5,0.10128617]
[1724868056442,7.98101,2506.0,2505.5,0.10128617]
[1724868056647,0.41546007,2506.3,2505.5,0.10128617]
[1724868056964,3.99106,2505.6,2505.5,0.10128617]
[1724868057160,11.97318,2505.6,2505.5,0.10128617]
[1724868057498,3.99133,2505.5,2504.9,10.35998]
[1724868057651,3.99091,2505.7,2505.0,0.23758]
[1724868057848,3.99124,2505.5,2505.0,4.33135016]
[1724868058246,2.2806,2506.4,2505.1,1.06992102]
[1724868058449,3.99059,2505.9,2505.5,2.3758]
[1724868058860,3.99059,2505.9,2505.6,0.1011754]
[1724868059089,3.91710699,2506.3,2505.6,0.1011754]
[1724868059090,0.91710699,2506.3,2505.6,0.1011754]
[1724868059300,3.98968,2506.5,2506.0,2.2508]
[1724868059455,0.50164692,2506.4,2505.7,2.2508]
[1724868059800,7.98031,2506.2,2505.7,6.34267464]
[1724868059945,3.99031,2506.1,2505.7,2.35186464]